fUSD/lending_fUSD_20250307
["ID","MTS","AMOUNT","RATE_DAILY","PERIOD"]
[355570950,1741306244138,-1526.5,9.991e-05,2]
[355570951,1741306244148,-500.0,9.991e-05,2]
[355570952,1741306244158,-500.0,9.991e-05,2]
[355570953,1741306244168,-500.0,9.991e-05,2]
[355570954,1741306244178,-324.2511183,9.991e-05,2]
[355570955,1741306244188,-348.16467998,9.991e-05,2]
[355570956,1741306244197,-500.0,9.991e-05,2]
[355570957,1741306244207,-826.37,9.991e-05,2]
[355570958,1741306244217,-500.0,9.991e-05,2]
[355570959,1741306244227,-500.0,9.991e-05,2]
[355570960,1741306244237,-799.32,9.991e-05,2]
[355570961,1741306244247,-500.0,9.991e-05,2]
[355570962,1741306244256,-500.0,9.991e-05,2]
[355570963,1741306244266,-500.0,9.991e-05,2]
[355570964,1741306244276,-500.0,9.991e-05,2]
[355570965,1741306244286,-1023.91,9.991e-05,2]
[355570966,1741306244296,-439.98919607,9.991e-05,2]
[355570967,1741306244306,-500.0,9.991e-05,2]
[355570968,1741306244316,-223.38351543,9.991e-05,2]
[355570969,1741306244333,-479.49648457,9.991e-05,2]
[355570970,1741306244343,-500.0,9.991e-05,2]
[355570971,1741306244352,-55.18231543,9.991e-05,2]
[355570972,1741306244376,-444.81768457,9.991e-05,2]
[355570973,1741306244386,-500.0,9.991e-05,2]
[355570974,1741306244396,-80.24941599,9.991e-05,2]
[355570975,1741306244506,-419.75058401,9.991e-05,2]
[355570976,1741306244515,-415.93616231,9.991e-05,2]
[355570977,1741306244837,-641.00383769,9.991e-05,2]
[355570978,1741306244847,-500.0,9.991e-05,2]
[355570979,1741306244857,-500.0,9.991e-05,2]
[355570980,1741306244866,-638.36,9.991e-05,2]
[355570981,1741306244876,-1285.36,9.991e-05,2]
[355570982,1741306244886,-312.95921306,9.991e-05,2]
[355570983,1741306244898,-500.0,9.991e-05,2]
[355570984,1741306244907,-500.0,9.991e-05,2]
[355570985,1741306244917,-500.0,9.991e-05,2]
[355570986,1741306244929,-1385.25,9.991e-05,2]
[355570987,1741306244940,-538.37,9.991e-05,2]
[355570988,1741306244950,-600.37352198,9.991e-05,2]
[355570989,1741306244979,-913.84647802,9.991e-05,2]
[355570990,1741306244990,-73.74294137,9.991e-05,2]
[355570991,1741306245577,-150.0,9.562e-05,7]
[355570992,1741306245587,-142.35005528,9.991e-05,2]
[355570993,1741306245605,-283.90700335,9.991e-05,2]
[355570994,1741306245615,-763.72,9.991e-05,2]
[355570995,1741306245625,-500.0,9.991e-05,2]
[355570996,1741306245636,-4117.16,9.991e-05,2]
[355570997,1741306245646,-500.0,9.991e-05,2]
[355570998,1741306245655,-500.0,9.991e-05,2]
[355570999,1741306245665,-500.0,9.991e-05,2]
[355571000,1741306245675,-500.0,9.991e-05,2]
[355571001,1741306245686,-500.0,9.991e-05,2]
[355571002,1741306245696,-768.67,9.991e-05,2]
[355571003,1741306245706,-1340.48,9.991e-05,2]
[355571004,1741306245715,-1258.59,9.991e-05,2]
[355571005,1741306245725,-500.0,9.991e-05,2]
[355571006,1741306245735,-500.0,9.991e-05,2]
[355571007,1741306245745,-1722.4,9.991e-05,2]
[355571008,1741306245754,-3885.13,9.991e-05,2]
[355571009,1741306245763,-495.68662662,9.991e-05,2]
[355571010,1741306245776,-1034.09337338,9.991e-05,2]
[355571011,1741306245785,-167.00577632,9.991e-05,2]
[355571012,1741306245794,-500.0,9.991e-05,2]
[355571013,1741306245804,-500.0,9.991e-05,2]
[355571014,1741306245814,-500.0,9.991e-05,2]
[355571015,1741306245823,-2226.11,9.991e-05,2]
[355571016,1741306245833,-886.0,9.991e-05,2]
[355571017,1741306245842,-601.75,9.991e-05,2]
[355571018,1741306245852,-890.89,9.991e-05,2]
[355571019,1741306245861,-500.0,9.991e-05,2]
[355571020,1741306245870,-500.0,9.991e-05,2]
[355571021,1741306245880,-3874.14,9.991e-05,2]
[355571022,1741306245950,-500.0,9.991e-05,2]
[355571023,1741306245960,-1030.29,9.991e-05,2]
[355571024,1741306245968,-4472.27,9.991e-05,2]
[355571025,1741306245978,-3357.19,9.991e-05,2]
[355571026,1741306245987,-500.0,9.991e-05,2]
[355571027,1741306245996,-18141.34,9.991e-05,2]
[355571028,1741306246006,-1969.45,9.991e-05,2]
[355571029,1741306246015,-500.0,9.991e-05,2]
[355571030,1741306246025,-500.0,9.991e-05,2]
[355571031,1741306246036,-500.0,9.991e-05,2]
[355571032,1741306246046,-2995.05,9.991e-05,2]
[355571033,1741306246056,-500.0,9.991e-05,2]
[355571034,1741306246068,-500.0,9.991e-05,2]
[355571035,1741306246077,-538.95746696,9.991e-05,2]
[355571036,1741306246087,-3023.41,9.991e-05,2]
[355571037,1741306246096,-500.0,9.991e-05,2]
[355571038,1741306246106,-1018.34,9.991e-05,2]
[355571039,1741306246116,-519.11498797,9.991e-05,2]
[355571040,1741306246127,-1472.49,9.991e-05,2]
[355571041,1741306246136,-500.0,9.991e-05,2]
[355571042,1741306246147,-1315.19,9.991e-05,2]
[355571043,1741306246158,-2091.08,9.991e-05,2]
[355571044,1741306246167,-523.484596,9.991e-05,2]
[355571045,1741306246177,-500.0,9.991e-05,2]
[355571046,1741306246190,-500.0,9.991e-05,2]
[355571047,1741306246200,-500.0,9.991e-05,2]
[355571048,1741306246210,-500.0,9.991e-05,2]
[355571049,1741306246219,-245.54828347,9.991e-05,2]
[355571050,1741306246229,-500.0,9.991e-05,2]
[355571051,1741306246238,-500.0,9.991e-05,2]
[355571052,1741306246247,-500.0,9.991e-05,2]
[355571053,1741306246257,-872.82,9.991e-05,2]
[355571054,1741306246267,-2203.26,9.991e-05,2]
[355571055,1741306246276,-500.0,9.991e-05,2]
[355571056,1741306246285,-500.0,9.991e-05,2]
[355571057,1741306246295,-14869.8,9.991e-05,2]
[355571058,1741306246306,-168.31116246,9.991e-05,2]
[355571059,1741306246324,-1400.62,9.991e-05,2]
[355571060,1741306246334,-500.0,9.991e-05,2]
[355571061,1741306246343,-500.0,9.991e-05,2]
[355571062,1741306246351,-500.0,9.991e-05,2]
[355571063,1741306246360,-1460.92,9.991e-05,2]
[355571064,1741306246370,-500.0,9.991e-05,2]
[355571065,1741306246379,-3055.83,9.991e-05,2]
[355571066,1741306246388,-758.18,9.991e-05,2]
[355571067,1741306246397,-34911.63532816,9.992e-05,2]
[355571068,1741306246407,-500.0,9.992e-05,2]
[355571069,1741306246417,-665.66,9.992e-05,2]
[355571070,1741306246427,-500.0,9.992e-05,2]
[355571071,1741306246438,-500.0,9.992e-05,2]
[355571072,1741306246447,-500.0,9.992e-05,2]
[355571073,1741306246457,-965.83,9.992e-05,2]
[355571074,1741306246466,-518.58,9.992e-05,2]
[355571075,1741306246476,-922.63,9.992e-05,2]
[355571076,1741306246485,-1116.29,9.992e-05,2]
[355571077,1741306246495,-500.0,9.992e-05,2]
[355571078,1741306246504,-978.9,9.992e-05,2]
[355571079,1741306246515,-641.65,9.992e-05,2]
[355571080,1741306246524,-500.0,9.992e-05,2]
[355571081,1741306246533,-443.61935351,9.992e-05,2]
[355571082,1741306246544,-628.66,9.992e-05,2]
[355571083,1741306246554,-520.92,9.992e-05,2]
[355571084,1741306246564,-500.0,9.992e-05,2]
[355571085,1741306246574,-500.0,9.992e-05,2]
[355571086,1741306246583,-500.0,9.992e-05,2]
[355571087,1741306246593,-500.0,9.992e-05,2]
[355571088,1741306246602,-539.94,9.992e-05,2]
[355571089,1741306246612,-500.0,9.992e-05,2]
[355571090,1741306246622,-500.0,9.992e-05,2]
[355571091,1741306246631,-500.0,9.992e-05,2]
[355571092,1741306246641,-500.0,9.992e-05,2]
[355571093,1741306246651,-500.0,9.992e-05,2]
[355571094,1741306246661,-500.0,9.992e-05,2]
[355571095,1741306246671,-755.69,9.992e-05,2]
[355571096,1741306246688,-500.0,9.992e-05,2]
[355571097,1741306246700,-500.0,9.992e-05,2]
[355571098,1741306246710,-674.64,9.992e-05,2]
[355571099,1741306246719,-500.0,9.992e-05,2]
[355571100,1741306246729,-500.0,9.992e-05,2]
[355571101,1741306246738,-500.0,9.992e-05,2]
[355571102,1741306246747,-500.0,9.992e-05,2]
[355571103,1741306246757,-500.0,9.992e-05,2]
[355571104,1741306246767,-500.0,9.992e-05,2]
[355571105,1741306246777,-500.0,9.992e-05,2]
[355571106,1741306246787,-500.0,9.992e-05,2]
[355571107,1741306246796,-500.0,9.992e-05,2]
[355571108,1741306246806,-500.0,9.992e-05,2]
[355571109,1741306246817,-500.0,9.992e-05,2]
[355571110,1741306246826,-520.49,9.992e-05,2]
[355571111,1741306246836,-500.0,9.992e-05,2]
[355571112,1741306246845,-500.0,9.992e-05,2]
[355571113,1741306246854,-500.0,9.992e-05,2]
[355571114,1741306246863,-500.0,9.992e-05,2]
[355571115,1741306246873,-500.0,9.992e-05,2]
[355571116,1741306246882,-973.44,9.992e-05,2]
[355571117,1741306246892,-693.9,9.992e-05,2]
[355571118,1741306246901,-500.0,9.992e-05,2]
[355571119,1741306246911,-505.05,9.992e-05,2]
[355571120,1741306246921,-1047.75,9.992e-05,2]
[355571121,1741306246931,-500.0,9.992e-05,2]
[355571122,1741306246942,-500.0,9.992e-05,2]
[355571123,1741306246953,-500.0,9.992e-05,2]
[355571124,1741306246962,-500.0,9.992e-05,2]
[355571125,1741306246971,-3266.96,9.992e-05,2]
[355571126,1741306246980,-500.0,9.992e-05,2]
[355571127,1741306246990,-500.0,9.992e-05,2]
[355571128,1741306246999,-1861.05,9.992e-05,2]
[355571129,1741306247009,-151.0,9.992e-05,2]
[355571130,1741306247018,-151.0,9.992e-05,2]
[355571131,1741306247029,-500.0,9.992e-05,2]
[355571132,1741306247039,-1000.0,9.992e-05,2]
[355571133,1741306247049,-3417.81,9.992e-05,2]
[355571134,1741306247060,-1063.01,9.992e-05,2]
[355571135,1741306247072,-500.0,9.992e-05,2]
[355571136,1741306247082,-706.06,9.992e-05,2]
[355571137,1741306247091,-500.0,9.992e-05,2]
[355571138,1741306247102,-907.08,9.992e-05,2]
[355571139,1741306247112,-2625.14,9.992e-05,2]
[355571140,1741306247121,-500.0,9.992e-05,2]
[355571141,1741306247130,-500.0,9.992e-05,2]
[355571142,1741306247141,-4117.16,9.992e-05,2]
[355571143,1741306247151,-500.0,9.992e-05,2]
[355571144,1741306247160,-500.0,9.992e-05,2]
[355571145,1741306247171,-500.0,9.992e-05,2]
[355571146,1741306247181,-2162.76,9.992e-05,2]
[355571147,1741306247191,-1333.18,9.992e-05,2]
[355571148,1741306247202,-1257.6,9.992e-05,2]
[355571149,1741306247211,-500.0,9.992e-05,2]
[355571150,1741306247221,-151.0,9.992e-05,2]
[355571151,1741306247230,-1281.89,9.992e-05,2]
[355571152,1741306247240,-500.0,9.992e-05,2]
[355571153,1741306247250,-500.0,9.992e-05,2]
[355571154,1741306247260,-500.0,9.992e-05,2]
[355571155,1741306247269,-500.0,9.992e-05,2]
[355571156,1741306247279,-500.0,9.992e-05,2]
[355571157,1741306247289,-500.0,9.992e-05,2]
[355571158,1741306247299,-500.0,9.992e-05,2]
[355571159,1741306247309,-500.0,9.992e-05,2]
[355571160,1741306247319,-3076.51,9.992e-05,2]
[355571161,1741306247328,-500.0,9.992e-05,2]
[355571162,1741306247338,-38.17654116,9.992e-05,2]
[355571163,1741306247351,-383.30164025,9.992e-05,2]
[355571164,1741306247363,-78.52181859,9.992e-05,2]
[355571165,1741306247372,-500.0,9.992e-05,2]
[355571166,1741306247382,-71.31152317,9.992e-05,2]
[355571167,1741306247406,-428.68847683,9.992e-05,2]
[355571168,1741306247416,-4.61121326,9.992e-05,2]
[355571169,1741306247428,-6025.12878674,9.992e-05,2]
[355571170,1741306247439,-500.0,9.992e-05,2]
[355571171,1741306247448,-500.0,9.992e-05,2]
[355571172,1741306247459,-500.0,9.992e-05,2]
[355571173,1741306247469,-500.0,9.992e-05,2]
[355571174,1741306247478,-2121.85,9.992e-05,2]
[355571175,1741306247488,-500.0,9.992e-05,2]
[355571176,1741306247498,-500.0,9.992e-05,2]
[355571177,1741306247507,-571.4,9.992e-05,2]
[355571178,1741306247517,-503.88,9.992e-05,2]
[355571179,1741306247527,-500.0,9.992e-05,2]
[355571180,1741306247537,-500.43568615,9.993e-05,2]
[355571181,1741306247547,-500.0,9.993e-05,2]
[355571182,1741306247556,-284.90799983,9.993e-05,2]
[355571183,1741306247566,-500.0,9.993e-05,2]
[355571184,1741306247575,-501.29761465,9.993e-05,2]
[355571185,1741306247585,-500.0,9.993e-05,2]
[355571186,1741306247594,-629.94757753,9.993e-05,2]
[355571187,1741306247604,-500.24323334,9.993e-05,2]
[355571188,1741306247613,-500.0,9.993e-05,2]
[355571189,1741306247622,-500.60380239,9.993e-05,2]
[355571190,1741306247632,-500.0,9.993e-05,2]
[355571191,1741306247641,-502.10397164,9.993e-05,2]
[355571192,1741306247650,-500.0,9.993e-05,2]
[355571193,1741306247660,-502.1493712,9.993e-05,2]
[355571194,1741306247669,-162.8165806,9.993e-05,2]
[355571195,1741306247678,-500.0,9.993e-05,2]
[355571196,1741306247689,-411.49601431,9.993e-05,2]
[355571197,1741306247698,-500.0,9.993e-05,2]
[355571198,1741306247707,-500.0,9.993e-05,2]
[355571199,1741306247716,-500.0,9.993e-05,2]
[355571200,1741306247725,-500.0,9.993e-05,2]
[355571201,1741306247735,-500.0,9.993e-05,2]
[355571202,1741306247744,-500.0,9.993e-05,2]
[355571203,1741306247754,-500.0,9.993e-05,2]
[355571204,1741306247763,-500.0,9.993e-05,2]
[355571205,1741306247773,-500.50124557,9.993e-05,2]
[355571206,1741306247782,-500.0,9.993e-05,2]
[355571207,1741306247792,-500.0,9.993e-05,2]
[355571208,1741306247801,-300.0,9.993e-05,2]
[355571209,1741306247810,-250.32061166,9.993e-05,2]
[355571210,1741306247824,-249.67938834,9.993e-05,2]
[355571211,1741306247834,-500.0,9.993e-05,2]
[355571212,1741306247843,-500.0,9.993e-05,2]
[355571213,1741306247852,-500.0,9.993e-05,2]
[355571214,1741306247862,-500.0,9.993e-05,2]
[355571215,1741306247872,-500.0,9.993e-05,2]
[355571216,1741306247882,-500.0,9.993e-05,2]
[355571217,1741306247891,-500.0,9.993e-05,2]
[355571218,1741306247901,-500.0,9.993e-05,2]
[355571219,1741306247912,-500.0,9.993e-05,2]
[355571220,1741306247922,-500.51473238,9.993e-05,2]
[355571221,1741306247932,-500.0,9.993e-05,2]
[355571222,1741306247943,-501.04176899,9.993e-05,2]
[355571223,1741306247952,-502.15190001,9.993e-05,2]
[355571224,1741306247962,-181.07479401,9.993e-05,2]
[355571225,1741306247972,-500.0,9.993e-05,2]
[355571226,1741306247982,-500.0,9.993e-05,2]
[355571227,1741306247992,-506.94693037,9.993e-05,2]
[355571228,1741306248002,-522.41664945,9.993e-05,2]
[355571229,1741306248012,-285.53221144,9.993e-05,2]
[355571230,1741306248024,-214.46778856,9.993e-05,2]
[355571231,1741306248034,-500.0,9.993e-05,2]
[355571232,1741306248044,-500.0,9.993e-05,2]
[355571233,1741306248055,-500.0,9.993e-05,2]
[355571234,1741306248068,-500.0,9.993e-05,2]
[355571235,1741306248078,-501.6641785,9.993e-05,2]
[355571236,1741306248088,-503.07188689,9.993e-05,2]
[355571237,1741306248098,-500.5066531,9.993e-05,2]
[355571238,1741306248110,-506.4552107,9.993e-05,2]
[355571239,1741306248120,-500.0,9.993e-05,2]
[355571240,1741306248130,-502.75022337,9.993e-05,2]
[355571241,1741306248141,-501.99551466,9.993e-05,2]
[355571242,1741306248151,-501.36998196,9.993e-05,2]
[355571243,1741306248162,-500.0,9.993e-05,2]
[355571244,1741306248172,-505.67428297,9.993e-05,2]
[355571245,1741306248182,-500.0,9.993e-05,2]
[355571246,1741306248192,-500.0,9.993e-05,2]
[355571247,1741306248203,-500.0,9.993e-05,2]
[355571248,1741306248214,-500.0,9.993e-05,2]
[355571249,1741306248224,-500.0,9.993e-05,2]
[355571250,1741306248234,-500.0,9.993e-05,2]
[355571251,1741306248244,-577.07447007,9.993e-05,2]
[355571252,1741306248254,-500.0,9.993e-05,2]
[355571253,1741306248264,-500.0,9.993e-05,2]
[355571254,1741306248274,-500.0,9.993e-05,2]
[355571255,1741306248284,-500.0,9.993e-05,2]
[355571256,1741306248293,-500.0,9.993e-05,2]
[355571257,1741306248303,-500.0,9.993e-05,2]
[355571258,1741306248313,-500.0,9.993e-05,2]
[355571259,1741306248323,-500.0,9.993e-05,2]
[355571260,1741306248332,-268.98946714,9.993e-05,2]
[355571261,1741306248358,-231.01053286,9.993e-05,2]
[355571262,1741306248368,-500.0,9.993e-05,2]
[355571263,1741306248378,-500.0,9.993e-05,2]
[355571264,1741306248387,-500.0,9.993e-05,2]
[355571265,1741306248397,-500.0,9.993e-05,2]
[355571266,1741306248407,-500.0,9.993e-05,2]
[355571267,1741306248417,-500.0,9.993e-05,2]
[355571268,1741306248427,-500.0,9.993e-05,2]
[355571269,1741306248437,-500.0,9.993e-05,2]
[355571270,1741306248447,-500.0,9.993e-05,2]
[355571271,1741306248456,-500.0,9.993e-05,2]
[355571272,1741306248466,-500.0,9.993e-05,2]
[355571273,1741306248476,-500.0,9.993e-05,2]
[355571274,1741306248486,-500.0,9.993e-05,2]
[355571275,1741306248496,-500.0,9.993e-05,2]
[355571276,1741306248506,-500.0,9.993e-05,2]
[355571277,1741306248515,-500.0,9.993e-05,2]
[355571278,1741306248524,-500.0,9.993e-05,2]
[355571279,1741306248534,-500.0,9.993e-05,2]
[355571280,1741306248544,-500.0,9.993e-05,2]
[355571281,1741306248553,-500.0,9.993e-05,2]
[355571282,1741306248563,-500.0,9.993e-05,2]
[355571283,1741306248573,-500.0,9.993e-05,2]
[355571284,1741306248583,-500.0,9.993e-05,2]
[355571285,1741306248592,-500.0,9.993e-05,2]
[355571286,1741306248601,-500.0,9.993e-05,2]
[355571287,1741306248611,-500.0,9.993e-05,2]
[355571288,1741306248620,-500.0,9.993e-05,2]
[355571289,1741306248629,-500.0,9.993e-05,2]
[355571290,1741306248639,-500.0,9.993e-05,2]
[355571291,1741306248649,-500.0,9.993e-05,2]
[355571292,1741306248660,-500.0,9.993e-05,2]
[355571293,1741306248669,-500.0,9.993e-05,2]
[355571294,1741306248678,-500.0,9.993e-05,2]
[355571295,1741306248689,-500.0,9.993e-05,2]
[355571296,1741306248699,-500.0,9.993e-05,2]
[355571297,1741306248710,-500.0,9.993e-05,2]
[355571298,1741306248720,-500.0,9.993e-05,2]
[355571299,1741306248730,-500.0,9.993e-05,2]
[355571300,1741306248742,-500.0,9.993e-05,2]
[355571301,1741306248752,-500.0,9.993e-05,2]
[355571302,1741306248763,-500.0,9.993e-05,2]
[355571303,1741306248773,-500.0,9.993e-05,2]
[355571304,1741306248784,-500.0,9.993e-05,2]
[355571305,1741306248794,-500.0,9.993e-05,2]
[355571306,1741306248804,-500.0,9.993e-05,2]
[355571307,1741306248814,-500.0,9.993e-05,2]
[355571308,1741306248824,-500.0,9.993e-05,2]
[355571309,1741306248834,-500.0,9.993e-05,2]
[355571310,1741306248844,-500.0,9.993e-05,2]
[355571311,1741306248855,-500.0,9.993e-05,2]
[355571312,1741306248865,-500.0,9.993e-05,2]
[355571313,1741306248875,-500.0,9.993e-05,2]
[355571314,1741306248886,-500.0,9.993e-05,2]
[355571315,1741306248896,-500.0,9.993e-05,2]
[355571316,1741306248906,-500.0,9.993e-05,2]
[355571317,1741306248916,-500.0,9.993e-05,2]
[355571318,1741306248926,-500.0,9.993e-05,2]
[355571319,1741306248937,-500.0,9.993e-05,2]
[355571320,1741306248947,-500.0,9.993e-05,2]
[355571321,1741306248957,-36.99048994,9.993e-05,2]
[355571322,1741306248975,-463.00951006,9.993e-05,2]
[355571323,1741306248986,-223.09002844,9.993e-05,2]
[355571324,1741306249773,-277.43348006,9.993e-05,2]
[355571325,1741306249784,-500.0,9.993e-05,2]
[355571326,1741306249794,-500.0,9.993e-05,2]
[355571327,1741306249804,-500.0,9.993e-05,2]
[355571328,1741306249814,-500.0,9.993e-05,2]
[355571329,1741306249824,-500.0,9.993e-05,2]
[355571330,1741306249834,-500.0,9.993e-05,2]
[355571331,1741306249844,-500.0,9.993e-05,2]
[355571332,1741306249855,-500.0,9.993e-05,2]
[355571333,1741306249865,-262.56651994,9.993e-05,2]
[355571334,1741306249878,-237.43348006,9.993e-05,2]
[355571335,1741306249888,-500.0,9.993e-05,2]
[355571336,1741306249898,-500.0,9.993e-05,2]
[355571337,1741306249908,-43.43174318,9.993e-05,2]
[355571338,1741306249920,-456.56825682,9.993e-05,2]
[355571339,1741306249930,-500.0,9.993e-05,2]
[355571340,1741306249941,-500.0,9.993e-05,2]
[355571341,1741306249952,-500.0,9.993e-05,2]
[355571342,1741306249966,-500.0,9.993e-05,2]
[355571343,1741306249976,-886.88,9.993e-05,2]
[355571344,1741306249987,-500.0,9.993e-05,2]
[355571345,1741306249997,-500.0,9.993e-05,2]
[355571346,1741306250007,-500.0,9.993e-05,2]
[355571347,1741306250018,-500.0,9.993e-05,2]
[355571348,1741306250028,-500.0,9.993e-05,2]
[355571349,1741306250038,-209.55333693,9.993e-05,2]
[355571350,1741306250051,-290.44666307,9.993e-05,2]
[355571351,1741306250259,-500.0,9.993e-05,2]
[355571352,1741306250270,-373.31833193,9.993e-05,2]
[355571353,1741306250288,-126.68166807,9.993e-05,2]
[355571354,1741306250297,-500.0,9.993e-05,2]
[355571355,1741306250306,-183.76203191,9.993e-05,2]
[355571356,1741306250873,-1113.0,9.954e-05,2]
[355571357,1741306250883,-1507.76,9.991e-05,2]
[355571358,1741306250893,-316.23796809,9.993e-05,2]
[355571359,1741306250903,-500.0,9.993e-05,2]
[355571360,1741306250913,-500.0,9.993e-05,2]
[355571361,1741306250923,-521.96662782,9.993e-05,2]
[355571362,1741306250932,-500.0,9.993e-05,2]
[355571363,1741306250942,-500.0,9.993e-05,2]
[355571364,1741306250952,-500.0,9.993e-05,2]
[355571365,1741306250961,-500.0,9.993e-05,2]
[355571366,1741306250972,-500.0,9.993e-05,2]
[355571367,1741306250982,-500.0,9.993e-05,2]
[355571368,1741306250991,-500.0,9.993e-05,2]
[355571369,1741306251001,-500.0,9.993e-05,2]
[355571370,1741306251010,-500.0,9.993e-05,2]
[355571371,1741306251020,-500.0,9.993e-05,2]
[355571372,1741306251030,-500.0,9.993e-05,2]
[355571373,1741306251040,-500.0,9.993e-05,2]
[355571374,1741306251050,-500.0,9.993e-05,2]
[355571375,1741306251059,-500.0,9.993e-05,2]
[355571376,1741306251074,-500.0,9.993e-05,2]
[355571377,1741306251083,-500.0,9.993e-05,2]
[355571378,1741306251092,-500.0,9.993e-05,2]
[355571379,1741306251103,-500.0,9.993e-05,2]
[355571380,1741306251112,-500.0,9.993e-05,2]
[355571381,1741306251121,-500.0,9.993e-05,2]
[355571382,1741306251131,-500.0,9.993e-05,2]
[355571383,1741306251142,-500.0,9.993e-05,2]
[355571384,1741306251152,-620.00438519,9.993e-05,2]
[355571385,1741306251162,-500.0,9.993e-05,2]
[355571386,1741306251172,-500.0,9.993e-05,2]
[355571387,1741306251181,-500.0,9.993e-05,2]
[355571388,1741306251191,-500.0,9.993e-05,2]
[355571389,1741306251201,-500.4533463,9.993e-05,2]
[355571390,1741306251211,-527.11196431,9.993e-05,2]
[355571391,1741306251220,-500.0,9.993e-05,2]
[355571392,1741306251230,-500.0,9.993e-05,2]
[355571393,1741306251240,-500.0,9.993e-05,2]
[355571394,1741306251251,-500.0,9.993e-05,2]
[355571395,1741306251261,-500.0,9.993e-05,2]
[355571396,1741306251270,-500.0,9.993e-05,2]
[355571397,1741306251280,-500.0,9.993e-05,2]
[355571398,1741306251290,-500.0,9.993e-05,2]
[355571399,1741306251299,-500.0,9.993e-05,2]
[355571400,1741306251309,-500.0,9.993e-05,2]
[355571401,1741306251319,-500.0,9.993e-05,2]
[355571402,1741306251329,-695.36,9.993e-05,2]
[355571403,1741306251341,-500.0,9.993e-05,2]
[355571404,1741306251352,-500.0,9.993e-05,2]
[355571405,1741306251367,-500.0,9.993e-05,2]
[355571406,1741306251381,-500.0,9.993e-05,2]
[355571407,1741306251391,-500.0,9.993e-05,2]
[355571408,1741306251402,-500.0,9.993e-05,2]
[355571409,1741306251412,-500.0,9.993e-05,2]
[355571410,1741306251423,-500.0,9.993e-05,2]
[355571411,1741306251435,-500.0,9.993e-05,2]
[355571412,1741306251447,-500.0,9.993e-05,2]
[355571413,1741306251458,-500.0,9.993e-05,2]
[355571414,1741306251467,-500.0,9.993e-05,2]
[355571415,1741306251477,-500.0,9.993e-05,2]
[355571416,1741306251486,-500.0,9.993e-05,2]
[355571417,1741306251496,-500.0,9.993e-05,2]
[355571418,1741306251505,-500.0,9.993e-05,2]
[355571419,1741306251516,-500.0,9.993e-05,2]
[355571420,1741306251525,-500.0,9.993e-05,2]
[355571421,1741306251535,-500.0,9.993e-05,2]
[355571422,1741306251544,-945.18,9.993e-05,2]
[355571423,1741306251554,-500.0,9.993e-05,2]
[355571424,1741306251564,-500.0,9.993e-05,2]
[355571425,1741306251573,-500.0,9.993e-05,2]
[355571426,1741306251583,-153.88648747,9.993e-05,2]
[355571427,1741306251592,-500.0,9.993e-05,2]
[355571428,1741306251603,-500.0,9.993e-05,2]
[355571429,1741306251613,-500.0,9.993e-05,2]
[355571430,1741306251622,-500.0,9.993e-05,2]
[355571431,1741306251632,-500.0,9.993e-05,2]
[355571432,1741306251643,-500.0,9.993e-05,2]
[355571433,1741306251653,-500.0,9.993e-05,2]
[355571434,1741306251663,-500.0,9.993e-05,2]
[355571435,1741306251672,-500.0,9.993e-05,2]
[355571436,1741306251682,-500.0,9.993e-05,2]
[355571437,1741306251694,-500.0,9.993e-05,2]
[355571438,1741306251703,-500.0,9.993e-05,2]
[355571439,1741306251712,-500.0,9.993e-05,2]
[355571440,1741306251722,-500.0,9.993e-05,2]
[355571441,1741306251732,-500.0,9.993e-05,2]
[355571442,1741306251741,-500.0,9.993e-05,2]
[355571443,1741306251751,-500.0,9.993e-05,2]
[355571444,1741306251760,-633.44082638,9.993e-05,2]
[355571445,1741306251770,-500.0,9.993e-05,2]
[355571446,1741306251780,-500.0,9.993e-05,2]
[355571447,1741306251789,-500.0,9.993e-05,2]
[355571448,1741306251799,-738.93,9.993e-05,2]
[355571449,1741306251809,-500.0,9.993e-05,2]